bitfinex/quotes_SOLUSD_20250527
["timestamp","ask_amount","ask_price","bid_price","bid_amount"]
[1748375263766,5.60852495,178.3,178.27,30.35386766]
[1748375265183,19.62909602,178.31,178.27,21.23386766]
[1748375265761,40.86296368,178.31,178.26,30.35386766]
[1748375266204,19.62909602,178.31,178.28,21.23386766]
[1748375266705,19.62909602,178.31,178.27,21.23386766]
[1748375267792,5.60821042,178.31,178.28,21.23386766]
[1748375269567,5.60789591,178.32,178.28,21.23386766]
[1748375270717,40.86150336,178.32,178.27,21.23386766]
[1748375270905,21.23386766,178.3,178.26,9.12]
[1748375271117,21.23386766,178.3,178.22,8.41628162]
[1748375271118,21.23386766,178.27,178.22,22.79676766]
[1748375271409,21.23386766,178.26,178.22,35.12]
[1748375271575,5.61009817,178.25,178.22,35.12]
[1748375271776,5.61009817,178.25,178.22,9.12]
[1748375272001,21.23386766,178.23,178.22,9.12]
[1748375272311,5.61009817,178.25,178.22,9.12]
[1748375272507,26.84396583,178.25,178.22,9.12]
[1748375273819,21.23386766,178.24,178.22,9.12]
[1748375275301,5.61009817,178.25,178.22,30.35386766]
[1748375276102,40.86818268,178.26,178.22,30.35386766]
[1748375276400,40.86818268,178.26,178.22,9.12]
[1748375277597,21.23386766,178.25,178.21,26.0]
[1748375277832,21.23386766,178.24,178.21,35.12]
[1748375279888,14.02453156,178.26,178.21,35.12]
[1748375280209,21.23386766,178.25,178.21,35.12]
[1748375280975,21.23386766,178.25,178.21,26.0]
[1748375281679,21.23386766,178.25,178.2,9.12]
[1748375281913,21.23386766,178.24,178.2,9.12]
[1748375282202,5.61072771,178.23,178.2,9.12]
[1748375282596,21.23386766,178.22,178.2,9.12]
[1748375284343,5.61104253,178.22,178.2,9.12]
[1748375285208,5.61104253,178.22,178.2,30.35386766]
[1748375285408,5.61104253,178.22,178.21,21.23386766]
[1748375285603,5.61104253,178.22,178.2,30.35386766]
[1748375286398,26.84428058,178.24,178.2,9.12]
[1748375286607,5.61041292,178.24,178.2,30.35386766]
[1748375286801,5.61041292,178.24,178.21,21.23386766]
[1748375288204,21.23386766,178.23,178.2,9.12]
[1748375290423,5.61104253,178.22,178.2,9.12]
[1748375290740,26.84491019,178.22,178.2,9.12]
[1748375291220,21.23386766,178.21,178.2,9.12]
[1748375291523,26.84491019,178.22,178.2,9.12]
[1748375291895,5.61104253,178.22,178.2,9.12]
[1748375293758,5.61104253,178.22,178.16,6.2704]
[1748375293759,21.23386766,178.21,178.16,6.2704]
[1748375293895,21.23386766,178.21,178.17,9.16]
[1748375294200,21.23386766,178.2,178.17,9.16]
[1748375294643,5.6119872,178.19,178.17,9.16]
[1748375296112,26.84585486,178.19,178.17,9.16]
[1748375296335,5.6119872,178.19,178.17,9.16]
[1748375298603,5.61167227,178.2,178.17,9.16]
[1748375300403,26.84553993,178.2,178.17,9.16]
[1748375300743,5.61167227,178.2,178.17,9.16]
[1748375301714,26.84553993,178.2,178.17,9.16]
[1748375302819,5.61167227,178.2,178.17,9.16]
[1748375303738,5.61167227,178.2,178.17,30.39386766]
[1748375304028,5.61167227,178.2,178.18,9.16]
[1748375304204,5.61135738,178.21,178.18,9.16]
[1748375307709,21.23386766,178.23,178.18,30.39386766]
[1748375309350,21.23386766,178.2,178.18,9.16]
[1748375309713,5.6119872,178.19,178.18,9.16]
[1748375311951,5.61135738,178.21,178.18,9.16]
[1748375312742,45.63534361,178.25,178.18,9.16]
[1748375312940,21.23386766,178.22,178.18,9.16]
[1748375313168,21.23386766,178.2,178.18,9.16]
[1748375313355,21.23386766,178.21,178.18,9.16]
[1748375313643,21.23386766,178.2,178.18,9.16]
[1748375314225,21.23386766,178.19,178.18,9.16]
[1748375315394,26.84585486,178.19,178.18,9.16]
[1748375315546,26.84585486,178.19,178.12,9.16]
[1748375315547,54.90579088,178.19,178.12,9.16]
[1748375315717,21.23386766,178.15,178.12,9.16]
[1748375316749,21.23386766,178.13,178.12,9.16]
[1748375317555,26.84774516,178.13,178.12,9.16]
[1748375320478,5.6138775,178.13,178.12,9.16]
[1748375321265,26.84774516,178.13,178.12,9.16]
[1748375322090,26.84774516,178.13,178.05,123.92]
[1748375322091,26.0,178.12,177.97,14.04692059]
[1748375322357,56.13386766,178.11,178.02,9.16]
[1748375322579,21.23386766,178.04,178.02,9.16]
[1748375322757,21.23386766,178.03,178.02,9.16]
[1748375323952,26.85089849,178.03,178.02,9.16]
[1748375324158,26.85089849,178.03,178.01,9.22]
[1748375324334,21.23386766,178.02,178.01,9.22]
[1748375324939,21.23386766,178.02,177.97,47.23386766]
[1748375325161,21.23386766,178.02,177.98,9.24]
[1748375325457,21.23386766,178.01,177.97,26.0]
[1748375325783,21.23386766,178.01,177.98,9.24]
[1748375325936,21.23386766,178.01,177.97,26.0]
[1748375326145,5.61797752,178.0,177.98,9.24]
[1748375329248,5.61797752,178.0,177.99,9.24]
[1748375329453,21.23386766,178.01,177.99,9.24]
[1748375329454,5.61766192,178.01,177.99,9.24]
[1748375329850,26.85152958,178.01,177.99,9.24]
[1748375330860,5.61766192,178.01,177.99,9.24]
[1748375331180,26.85152958,178.01,177.99,9.24]
[1748375333252,21.23386766,178.0,177.99,9.24]
[1748375333477,21.23386766,178.0,177.98,9.24]
[1748375333769,21.23386766,177.99,177.98,9.24]
[1748375334777,26.85216082,177.99,177.98,9.24]
[1748375336268,5.61829316,177.99,177.98,9.24]
[1748375337588,5.61703083,178.03,177.98,9.24]
[1748375337917,21.23386766,178.01,177.98,9.24]
[1748375338477,21.23386766,178.0,177.97,9.24]
[1748375340575,5.61829316,177.99,177.97,9.24]
[1748375344586,26.85216082,177.99,177.97,9.24]
[1748375347287,21.23386766,177.98,177.97,9.24]
[1748375347827,21.23386766,177.98,177.93,9.24]
[1748375347963,21.23386766,177.94,177.93,9.24]
[1748375349671,26.85373952,177.94,177.93,9.24]
[1748375354193,26.85373952,177.94,177.9,26.0]
[1748375354377,26.85373952,177.94,177.91,9.14]
[1748375355190,21.23386766,177.93,177.91,9.14]
[1748375356305,21.23386766,177.92,177.87,89.0]
[1748375356478,21.23386766,177.9,177.88,9.14]
[1748375358173,5.62145145,177.89,177.88,9.14]
[1748375359582,19.81121622,177.95,177.88,9.14]
[1748375359906,21.23386766,177.91,177.88,9.14]
[1748375360076,21.23386766,177.91,177.87,21.23386766]
[1748375360294,5.62113546,177.9,177.88,9.16]
[1748375362992,5.95863546,177.9,177.88,9.16]
[1748375365298,5.95863546,177.9,177.86,128.05386766]
[1748375365480,5.95863546,177.9,177.87,9.16]
[1748375366199,5.95863546,177.9,177.88,9.16]
[1748375367701,27.19250312,177.9,177.88,9.16]
[1748375367890,27.19250312,177.9,177.87,9.16]
[1748375367891,21.23386766,177.89,177.87,9.16]
[1748375369291,5.95863546,177.9,177.88,21.23386766]
[1748375369292,0.3375,177.9,177.88,21.23386766]
[1748375369500,0.3375,177.9,177.89,21.23386766]
[1748375369692,14.04797605,177.97,177.89,21.23386766]
[1748375369887,21.23386766,177.94,177.9,21.23386766]
[1748375370415,5.62018771,177.93,177.9,21.23386766]
[1748375370785,5.62018771,177.93,177.87,49.58203992]
[1748375370786,26.85405537,177.93,177.89,21.23386766]
[1748375372315,26.85405537,177.93,177.88,21.23386766]
[1748375372507,5.62018771,177.93,177.89,21.23386766]
[1748375373301,26.85405537,177.93,177.88,21.23386766]
[1748375374416,26.85405537,177.93,177.87,9.16]
[1748375374417,21.23386766,177.92,177.87,30.39386766]
[1748375374989,5.62018771,177.93,177.89,21.23386766]
[1748375375201,1.5684,177.98,177.91,21.23386766]
[1748375375202,5.61892453,177.97,177.91,21.23386766]
[1748375375404,5.61892453,177.97,177.93,21.23386766]
[1748375375590,5.61892453,177.97,177.93,30.39386766]
[1748375376524,21.23386766,177.99,177.94,21.23386766]
[1748375376698,5.61797752,178.0,177.93,9.16]
[1748375376699,21.23386766,177.98,177.93,30.39386766]
[1748375379515,5.61892453,177.97,177.93,30.39386766]
[1748375382411,5.61892453,177.97,177.93,9.16]
[1748375382587,5.61892453,177.97,177.93,30.39386766]
[1748375385491,5.95642453,177.97,177.93,30.39386766]
[1748375387038,5.95642453,177.97,177.94,21.23386766]
[1748375387229,5.95642453,177.97,177.93,30.39386766]
[1748375390206,20.00373587,177.97,177.93,30.39386766]
[1748375390406,41.23760353,177.97,177.93,9.16]
[1748375391021,20.00373587,177.97,177.93,30.39386766]
[1748375393609,20.00373587,177.97,177.94,21.23386766]
[1748375395731,21.23386766,177.95,177.93,9.16]
[1748375396933,5.61987186,177.94,177.93,9.16]
[1748375398308,5.61924027,177.96,177.93,9.16]
[1748375400334,5.61924027,177.96,177.89,123.0237]
[1748375400518,5.61924027,177.96,177.9,9.14]
[1748375400519,21.23386766,177.94,177.9,9.14]
[1748375400853,21.23386766,177.95,177.9,30.37386766]
[1748375401025,40.90120862,177.96,177.9,30.37386766]
[1748375401218,1.5123,178.03,177.95,21.23386766]
[1748375401521,21.23386766,178.02,177.97,21.23386766]
[1748375401708,40.89512988,178.02,177.97,21.23386766]
[1748375402436,40.896789,178.0,177.96,9.14]
[1748375403233,19.66292134,178.0,177.96,9.14]
[1748375403434,19.66292134,178.0,177.96,30.37386766]
[1748375403935,19.66292134,178.0,177.96,9.14]
[1748375404123,40.896789,178.0,177.96,9.14]
[1748375405238,40.896789,178.0,177.96,30.37386766]
[1748375405239,5.61797752,178.0,177.96,30.37386766]
[1748375405544,5.61797752,178.0,177.97,21.23386766]
[1748375405915,26.85184518,178.0,177.96,9.14]
[1748375406447,40.896789,178.0,177.96,9.14]
[1748375406941,21.23386766,177.99,177.96,9.14]
[1748375407150,21.23386766,177.98,177.96,9.14]
[1748375407330,5.61892453,177.97,177.96,9.14]
[1748375409241,5.61860883,177.98,177.96,9.14]
[1748375409740,5.61840947,177.99,177.97,21.23386766]
[1748375411244,0.3375,178.0,177.98,21.23386766]
[1748375411447,5.95556841,178.0,177.98,21.23386766]
[1748375412545,0.3375,178.0,177.99,21.23386766]
[1748375417829,5.95547752,178.0,177.99,21.23386766]
[1748375418045,5.95547752,178.0,177.97,115.0]
[1748375418253,5.95547752,178.0,177.98,21.23386766]
[1748375421464,0.3375,178.0,177.99,21.23386766]
[1748375423085,0.3375,178.0,177.99,39.88351652]
[1748375424663,0.3375,178.0,177.99,45.50180968]
[1748375425232,0.3375,178.0,177.99,39.88351652]
[1748375425655,0.3375,178.0,177.99,128.88351652]
[1748375425862,0.3375,178.0,177.99,110.23386766]
[1748375426844,0.3375,178.0,177.97,26.0]
[1748375427062,21.23386766,177.98,177.91,9.14]
[1748375427272,21.23386766,177.94,177.91,9.14]
[1748375427485,20.00054688,178.0,177.91,9.14]
[1748375427637,21.23386766,177.92,177.91,9.14]
[1748375429161,26.85437125,177.92,177.91,9.14]
[1748375429374,26.85437125,177.92,177.89,9.14]
[1748375429556,21.23386766,177.91,177.89,9.14]
[1748375430235,21.23386766,177.9,177.85,47.23386766]
[1748375430440,21.23386766,177.9,177.86,9.14]
[1748375431069,21.23386766,177.91,177.86,9.14]
[1748375431255,5.62113546,177.9,177.86,9.14]
[1748375433262,5.62113546,177.9,177.86,30.37386766]
[1748375434263,5.62113546,177.9,177.86,9.14]
[1748375434764,21.23386766,177.9,177.86,9.14]
[1748375435944,21.23386766,177.91,177.86,30.37386766]
[1748375436867,5.62113546,177.9,177.86,9.14]
[1748375437072,5.62113546,177.9,177.86,30.37386766]
[1748375439375,26.85500312,177.9,177.86,9.14]
[1748375439550,26.85500312,177.9,177.86,30.37386766]
[1748375439948,5.62113546,177.9,177.86,30.37386766]
[1748375442074,21.23386766,177.91,177.87,21.23386766]
[1748375442469,21.23386766,177.92,177.87,21.23386766]
[1748375442660,21.23386766,177.93,177.88,21.23386766]
[1748375443065,21.23386766,177.92,177.87,21.23386766]
[1748375443265,21.23386766,177.91,177.87,21.23386766]
[1748375443958,21.23386766,177.88,177.86,9.14]
[1748375444164,26.8559512,177.87,177.86,9.14]
[1748375447880,27.1934512,177.87,177.86,9.14]
[1748375449979,5.95958354,177.87,177.86,9.14]
[1748375457292,27.1934512,177.87,177.86,9.14]
[1748375464998,5.95958354,177.87,177.86,9.14]
[1748375466867,0.3375,177.87,177.86,30.37386766]
[1748375467284,5.95958354,177.87,177.86,30.37386766]
[1748375468277,0.3375,177.87,177.86,30.37386766]
[1748375469598,5.95958354,177.87,177.86,30.37386766]
[1748375471200,5.95958354,177.87,177.86,9.14]
[1748375473834,0.3375,177.87,177.86,30.37386766]
[1748375474144,0.3375,177.87,177.86,119.37386766]
[1748375478450,0.3375,177.87,177.86,89.0]
[1748375478613,27.1934512,177.87,177.84,9.12]
[1748375483614,5.95958354,177.87,177.84,30.35386766]
[1748375483913,5.95958354,177.87,177.85,21.23386766]
[1748375484123,0.3375,177.87,177.86,21.23386766]
[1748375486198,0.3375,177.87,177.86,110.23386766]
[1748375486548,0.3375,177.87,177.86,160.50591616]
[1748375488834,0.3375,177.87,177.86,134.50591616]
[1748375489709,0.3375,177.87,177.86,134.64807773]
[1748375490320,0.3375,177.87,177.86,142.46457773]
[1748375490707,0.3375,177.87,177.86,289.16457773]
[1748375491537,0.3375,177.87,177.86,293.93071007]
[1748375491727,0.3375,177.87,177.86,315.16457773]
[1748375493913,0.3375,177.87,177.86,289.16457773]
[1748375496238,0.3375,177.87,177.86,287.36681616]
[1748375496534,0.3375,177.87,177.86,140.66681616]
[1748375497453,0.3375,177.87,177.86,110.23386766]
[1748375498815,0.3375,177.87,177.86,115.8562673]
[1748375499016,0.3375,177.87,177.86,134.50591616]
[1748375505324,0.3375,177.87,177.86,169.24591616]
[1748375505645,0.3375,177.87,177.86,169.38807773]
[1748375505832,0.3375,177.87,177.86,316.08807773]
[1748375507245,0.3375,177.87,177.86,310.32351652]
[1748375508253,0.3375,177.87,177.86,256.93386766]
[1748375511335,0.3375,177.87,177.86,110.23386766]
[1748375511741,0.3375,177.87,177.86,144.97386766]
[1748375512142,0.3375,177.87,177.86,47.23386766]
[1748375512861,0.3375,177.87,177.86,154.88351652]
[1748375514751,0.3375,177.87,177.86,160.50591616]
[1748375518754,0.3375,177.87,177.86,169.62591616]
[1748375519262,1.5936,177.97,177.9,26.0]
[1748375519442,1.5936,177.97,177.95,21.23386766]
[1748375519748,1.5936,177.97,177.96,9.12]
[1748375520358,5.61866541,177.98,177.96,30.35386766]
[1748375520932,19.66355606,178.0,177.96,30.35386766]
[1748375521134,21.23386766,177.99,177.96,9.12]
[1748375523033,5.61860883,177.98,177.96,9.12]
[1748375523249,26.85247649,177.98,177.96,9.12]
[1748375523762,21.23386766,177.97,177.88,89.0]
[1748375524060,21.23386766,177.93,177.89,9.12]
[1748375524245,21.23386766,177.93,177.89,35.12]
[1748375524556,21.23386766,177.93,177.89,9.12]
[1748375525055,5.62050359,177.92,177.89,9.12]
[1748375525352,5.62050359,177.92,177.89,35.12]
[1748375527171,19.67065699,177.93,177.89,35.12]
[1748375527831,19.67065699,177.93,177.9,9.12]
[1748375528461,5.62018771,177.93,177.9,9.12]
[1748375528740,5.62018771,177.93,177.9,30.35386766]
[1748375529364,21.23386766,177.95,177.9,30.35386766]
[1748375529365,5.61987186,177.94,177.9,30.35386766]
[1748375530265,14.04628567,177.99,177.92,21.23386766]
[1748375530443,14.04628567,177.99,177.95,21.23386766]
[1748375531642,5.61829316,177.99,177.96,30.35386766]
[1748375531874,5.61806087,178.0,177.98,21.23386766]
[1748375532041,5.61806087,178.0,177.97,21.23386766]
[1748375532359,5.61806087,178.0,177.96,9.12]
[1748375532360,5.61806087,178.0,177.96,30.35386766]
[1748375532860,5.61806087,178.0,177.97,21.23386766]
[1748375533044,5.61806087,178.0,177.98,21.23386766]
[1748375533574,5.61734636,178.02,177.98,21.23386766]
[1748375534756,19.66071227,178.02,177.96,35.12]
[1748375535069,19.66071227,178.02,177.97,21.23386766]
[1748375536959,21.23386766,178.01,177.96,56.35386766]
[1748375537161,21.23386766,178.0,177.96,35.12]
[1748375537542,19.66071227,178.02,177.96,56.35386766]
[1748375537870,19.66071227,178.02,177.97,21.23386766]
[1748375538238,40.89457993,178.02,177.97,21.23386766]
[1748375540158,14.04336591,178.02,177.97,21.23386766]
[1748375540368,14.04336591,178.02,177.98,21.23386766]
[1748375540566,5.61671534,178.04,177.99,21.23386766]
[1748375541856,19.6585037,178.04,178.0,21.23386766]
[1748375542048,19.6585037,178.04,178.01,21.23386766]
[1748375542582,5.61671534,178.04,178.03,21.23386766]
[1748375543048,5.61671534,178.04,178.02,30.33386766]
[1748375543247,5.61671534,178.04,178.02,9.1]
[1748375543867,5.61639988,178.05,178.02,9.1]
[1748375545055,21.23386766,178.03,177.96,89.0]
[1748375545259,21.23386766,178.02,177.98,26.0]
[1748375545576,21.23386766,178.02,177.97,9.1]
[1748375545577,21.23386766,178.0,177.97,9.1]
[1748375546484,21.23386766,177.99,177.97,9.1]
[1748375546712,21.23386766,177.98,177.92,9.1]
[1748375546901,1.5353,177.97,177.92,9.1]
[1748375547196,5.62018771,177.93,177.92,9.1]
[1748375547345,26.85405537,177.93,177.92,9.1]
[1748375547551,5.62018771,177.93,177.92,9.1]
[1748375549343,5.61924027,177.96,177.92,30.33386766]
[1748375549676,5.61924027,177.96,177.93,21.23386766]
[1748375550261,5.61766192,178.01,177.95,21.23386766]
[1748375550474,26.85152958,178.01,177.96,21.23386766]
[1748375550796,21.23386766,177.99,177.94,21.23386766]
[1748375551082,40.8956844,178.01,177.96,21.23386766]
[1748375551281,5.61829316,177.99,177.95,21.23386766]
[1748375551487,40.89789372,177.99,177.94,21.23386766]
[1748375552068,21.23386766,177.98,177.93,21.23386766]
[1748375553268,40.89789372,177.99,177.93,21.23386766]
[1748375554473,21.23386766,177.98,177.93,21.23386766]
[1748375555569,5.61892453,177.97,177.93,21.23386766]
[1748375556152,5.61892453,177.97,177.94,21.23386766]
[1748375557461,5.61860883,177.98,177.94,21.23386766]
[1748375560416,5.61766192,178.01,177.97,21.23386766]
[1748375560560,5.61766192,178.01,178.0,21.23386766]
[1748375560774,5.61766192,178.01,177.99,21.23386766]
[1748375560978,5.61766192,178.01,177.98,9.1]
[1748375561276,5.61766192,178.01,177.98,30.33386766]
[1748375561477,5.61766192,178.01,177.99,21.23386766]
[1748375561878,5.61766192,178.01,178.0,21.23386766]
[1748375562565,19.6585037,178.04,178.0,21.23386766]
[1748375562877,19.6585037,178.04,177.99,21.23386766]
[1748375564873,5.61671534,178.04,178.01,21.23386766]
[1748375566687,5.61639988,178.05,178.01,21.23386766]
[1748375567873,5.61608446,178.06,178.01,21.23386766]
[1748375568063,19.65629562,178.06,178.01,21.23386766]
[1748375568560,40.89016328,178.06,178.01,21.23386766]
[1748375568769,21.23386766,178.05,178.0,21.23386766]
[1748375569885,19.6585037,178.04,178.01,21.23386766]
[1748375570268,19.6585037,178.04,178.0,21.23386766]
[1748375572586,19.6585037,178.04,177.99,34.7]
[1748375572901,19.6585037,178.04,178.0,21.23386766]
[1748375573805,5.61671534,178.04,178.02,21.23386766]
[1748375574304,19.65629562,178.06,178.01,21.23386766]
[1748375575071,40.89016328,178.06,178.01,21.23386766]
[1748375575276,21.23386766,178.05,178.0,21.23386766]
[1748375576075,19.6585037,178.04,178.0,21.23386766]
[1748375577193,19.6585037,178.04,177.99,34.68]
[1748375577194,40.89237136,178.04,177.99,34.68]
[1748375577366,40.89237136,178.04,177.99,55.91386766]
[1748375577767,40.89237136,178.04,177.99,21.23386766]
[1748375578185,40.89237136,178.04,178.0,9.1]
[1748375579469,19.6585037,178.04,178.0,9.1]
[1748375579783,19.6585037,178.04,178.0,30.33386766]
[1748375580373,40.89237136,178.04,178.0,9.1]
[1748375580579,21.23386766,178.03,178.0,9.1]
[1748375580777,21.23386766,178.02,178.0,9.1]
[1748375580988,5.61766192,178.01,178.0,9.1]
[1748375583212,5.61734636,178.02,178.0,9.1]
[1748375585391,40.89457993,178.02,177.97,21.23386766]
[1748375585706,19.66071227,178.02,177.98,30.33386766]
[1748375586079,5.61734636,178.02,177.99,21.23386766]
[1748375586299,5.61734636,178.02,178.0,21.23386766]
[1748375586987,5.61734636,178.02,177.99,21.23386766]
[1748375587595,5.61703083,178.03,177.99,21.23386766]
[1748375589289,5.61703083,178.03,178.0,21.23386766]
[1748375589706,5.61671534,178.04,178.02,21.23386766]
[1748375591889,14.04163018,178.05,178.02,21.23386766]
[1748375592503,5.61608446,178.06,178.02,21.23386766]
[1748375593006,5.61608446,178.06,178.03,21.23386766]
[1748375593201,5.61608446,178.06,178.04,9.1]
[1748375594190,5.61576907,178.07,178.04,9.1]
[1748375594602,26.84963673,178.07,178.04,9.1]
[1748375595513,5.61576907,178.07,178.04,9.1]
[1748375600011,21.23386766,178.06,178.04,9.1]
[1748375600507,26.84963673,178.07,178.04,9.1]
[1748375600915,21.23386766,178.06,178.04,9.1]
[1748375602510,5.61639988,178.05,178.04,9.1]
[1748375604410,5.61639988,178.05,178.0,21.23386766]
[1748375604411,40.89126725,178.05,178.0,9.08]
[1748375604621,21.23386766,178.02,178.0,9.08]
[1748375605697,21.23386766,178.03,178.0,9.08]
[1748375606104,5.61734636,178.02,178.0,9.08]
[1748375607215,5.61734636,178.02,178.01,21.23386766]
[1748375607919,5.61734636,178.02,178.0,30.31386766]
[1748375608291,5.61671534,178.04,178.0,30.31386766]
[1748375610718,14.03917981,178.08,178.0,104.2679]
[1748375610913,19.65519176,178.07,178.03,21.23386766]
[1748375611097,21.23386766,178.06,178.01,21.23386766]
[1748375611298,21.23386766,178.05,178.0,98.08]
[1748375612116,21.23386766,178.04,178.0,98.08]
[1748375612320,21.23386766,178.04,178.0,9.08]
[1748375613323,5.61703083,178.03,178.0,30.31386766]
[1748375615517,5.61671534,178.04,178.01,21.23386766]
[1748375616412,5.61671534,178.04,178.01,30.31386766]
[1748375617128,5.61671534,178.04,178.01,9.08]
[1748375619528,28.07779589,178.08,177.95,166.89424886]
[1748375619529,21.23386766,178.02,177.95,1.5446]
[1748375619754,21.23386766,177.97,177.94,9.08]
[1748375619926,21.37602923,178.02,177.94,9.08]
[1748375619927,21.23386766,177.96,177.94,9.08]
[1748375620333,21.23386766,177.95,177.94,9.08]
[1748375621835,26.85342371,177.95,177.94,9.08]
[1748375622423,26.85342371,177.95,177.94,8.9107194]
[1748375628536,21.23386766,177.96,177.94,8.9107194]
[1748375629541,5.61955605,177.95,177.94,8.9107194]
[1748375629924,26.85342371,177.95,177.94,8.9107194]
[1748375630316,5.61955605,177.95,177.94,8.9107194]
[1748375633141,21.23386766,177.95,177.94,8.9107194]
[1748375635251,5.61955605,177.95,177.94,8.9107194]
[1748375636932,5.61924027,177.96,177.94,8.9107194]
[1748375641242,21.23386766,177.96,177.94,8.9107194]
[1748375642757,5.61955605,177.95,177.94,8.9107194]
[1748375643259,26.85342371,177.95,177.94,8.9107194]
[1748375644357,26.85342371,177.95,177.9,26.0]
[1748375644358,40.90231384,177.95,177.9,26.0]
[1748375644651,21.23386766,177.92,177.9,35.08]
[1748375645148,5.62081951,177.91,177.9,35.08]
[1748375649436,5.62081951,177.91,177.9,9.08]
[1748375649637,26.85468717,177.91,177.9,9.08]
[1748375650248,5.61987186,177.94,177.9,30.31386766]
[1748375650455,5.61987186,177.94,177.91,21.23386766]
[1748375651338,5.61924027,177.96,177.91,21.23386766]
[1748375658481,5.61797752,178.0,177.92,21.23386766]
[1748375658679,21.23386766,177.97,177.92,21.23386766]
[1748375658846,21.23386766,177.97,177.93,9.08]
[1748375660561,5.61924027,177.96,177.93,9.08]
[1748375662371,5.61924027,177.96,177.93,30.31386766]
[1748375662575,21.23386766,177.99,177.93,30.31386766]
[1748375663519,26.85184518,178.0,177.95,21.23386766]
[1748375664196,5.61797752,178.0,177.96,21.23386766]
[1748375665095,5.61797752,178.0,177.97,21.23386766]
[1748375665282,5.61734636,178.02,177.98,47.23386766]
[1748375665480,5.61734636,178.02,178.0,21.23386766]
[1748375666079,5.61734636,178.02,177.99,30.31386766]
[1748375666486,14.04070906,178.06,178.01,21.23386766]
[1748375667589,40.89066118,178.06,178.01,21.23386766]
[1748375668606,21.23386766,178.03,177.99,9.08]
[1748375669513,21.23386766,178.04,177.99,9.08]
[1748375670297,21.23386766,178.04,177.98,136.23386766]
[1748375670298,21.23386766,178.0,177.93,12.5310557]
[1748375670501,5.61860883,177.98,177.93,36.35996766]
[1748375670793,5.61860883,177.98,177.96,26.0]
[1748375670996,5.61860883,177.98,177.94,21.23386766]
[1748375671197,5.61860883,177.98,177.95,21.23386766]
[1748375671395,5.61860883,177.98,177.96,26.0]
[1748375672211,5.61829316,177.99,177.95,21.23386766]
[1748375672614,5.61829316,177.99,177.96,26.0]
[1748375674075,5.61829316,177.99,177.97,21.23386766]
[1748375675517,5.61766192,178.01,177.97,21.23386766]
[1748375676301,5.61766192,178.01,177.98,21.23386766]
[1748375676621,5.61766192,178.01,177.99,30.29386766]
[1748375676813,5.61766192,178.01,177.99,9.06]
[1748375677628,5.61734636,178.02,177.99,9.06]
[1748375679214,21.23386766,178.01,177.99,9.06]
[1748375679415,21.23386766,178.0,177.99,9.06]
[1748375679607,5.61797752,178.0,177.99,9.06]
[1748375680213,26.85184518,178.0,177.99,9.06]
[1748375680421,5.61797752,178.0,177.99,9.06]
[1748375681419,5.61703083,178.03,177.99,9.06]
[1748375681722,35.27592423,178.04,177.99,30.29386766]
[1748375682851,40.89263957,178.04,177.99,30.29386766]
[1748375683046,19.65877191,178.04,177.99,30.29386766]
[1748375683362,40.89263957,178.04,177.99,30.29386766]
[1748375683565,26.850583,178.04,177.99,30.29386766]
[1748375685271,5.61671534,178.04,177.99,30.29386766]
[1748375685435,52.850583,178.04,177.99,30.29386766]
[1748375685853,52.850583,178.04,177.99,119.29386766]
[1748375688964,26.850583,178.04,177.99,119.29386766]
[1748375690656,5.61671534,178.04,178.0,21.23386766]
[1748375692262,5.61671534,178.04,177.99,98.06]
[1748375692457,5.61671534,178.04,178.0,21.23386766]
[1748375696467,5.61671534,178.04,177.99,119.29386766]
[1748375697377,5.61671534,178.04,177.99,98.06]
[1748375697378,21.23386766,178.02,177.99,98.06]
[1748375699594,26.85152958,178.01,177.99,98.06]
[1748375700533,5.61608446,178.06,178.0,27.58636766]
[1748375700686,5.61608446,178.06,178.03,21.23386766]
[1748375701098,5.61608446,178.06,178.0,129.9725]
[1748375701279,5.61608446,178.06,178.02,21.23386766]
[1748375701479,26.84995212,178.06,178.01,21.23386766]
[1748375702403,40.89016328,178.06,178.01,21.23386766]
[1748375702989,21.23386766,178.04,178.0,89.0]
[1748375703192,21.23386766,178.03,177.99,9.06]
[1748375703382,19.65629562,178.06,177.99,9.06]
[1748375703383,21.23386766,178.02,177.99,9.06]
[1748375703588,5.61797752,178.0,177.99,9.06]
[1748375703939,5.61797752,178.0,177.91,5.62060879]